lending/lending_fUSD_20251020
["ID","MTS","AMOUNT","RATE_DAILY","PERIOD"]
[391873830,1760940643138,-150.65,0.00017019,2]
[391873831,1760940643150,-1000.0,0.00017031,2]
[391873832,1760940643162,-500.0,0.00017041,2]
[391873833,1760940643173,-500.0,0.00017096,2]
[391873834,1760940643184,-1924.9253263,0.00017117,2]
[391873835,1760940643195,-500.0,0.0001715,2]
[391873836,1760940643206,-925.18,0.00017167,2]
[391873837,1760940643219,-6316.21076341,0.00017191,2]
[391873841,1760940645824,-2784.558,0.00017191,2]
[391873842,1760940645998,-1112.0,0.00017191,2]
[391873843,1760940646065,-11316.42337344,0.00017191,2]
[391873844,1760940646129,-724.10009648,0.00017191,2]
[391873845,1760940646143,-483.09304386,0.00017191,2]
[391873846,1760940646191,-304.15464,0.00017191,2]
[391873853,1760941200247,8798.214,0.00034139,120]
[391873857,1760941525168,651.15849524,0.000108,2]
[391873858,1760941535986,5360.14035359,9e-05,2]
[391873859,1760941565209,4702.6080326,0.00011,2]
[391873872,1760941663820,-165.2,0.00016678,30]
[391873889,1760941702989,-159.91454788,0.000149,2]
[391873890,1760941703010,-4473.905435,0.00014924,2]
[391873891,1760941703031,-300.0,0.00014998,2]
[391873892,1760941703054,-165.36019912,0.00014999,2]
[391873893,1760941703080,-225.8111442,0.00014999,2]
[391873894,1760941703102,-515.6311075,0.00014999,2]
[391873895,1760941703127,-500.0,0.00014999,2]
[391873896,1760941703151,-500.0,0.00014999,2]
[391873897,1760941703174,-500.0,0.00014999,2]
[391873898,1760941703197,-500.0,0.00014999,2]
[391873899,1760941703220,-500.0,0.00014999,2]
[391873900,1760941703243,-150.86309983,0.00014999,2]
[391873901,1760941703266,-294.54034442,0.00014999,2]
[391873902,1760941703287,-150.0,0.00014999,2]
[391873903,1760941703310,-500.0,0.00014999,2]
[391873904,1760941703338,-500.0,0.00014999,2]
[391873905,1760941703361,-425.29565345,0.00014999,2]
[391873906,1760941703382,-249.17543327,0.00015,2]
[391873907,1760941703404,-4389.50303533,0.00015,2]
[391873908,1760941704550,-15000.0,0.00015,2]
[391873909,1760941704937,-15000.0,0.00015,2]
[391873910,1760941705328,-15000.0,0.00015,2]
[391873911,1760941705778,-15000.0,0.00015,2]
[391873912,1760941706165,-15000.0,0.00015,2]
[391873913,1760941706671,-15000.0,0.00015,2]
[391873914,1760941707109,-15000.0,0.00015,2]
[391873915,1760941707520,-15000.0,0.00015,2]
[391873916,1760941708412,-15000.0,0.00015,2]
[391873917,1760941708909,-15000.0,0.00015,2]
[391873918,1760941709303,-15000.0,0.00015,2]
[391873919,1760941709998,-15000.0,0.00015,2]
[391873920,1760941710607,-15000.0,0.00015,2]
[391873921,1760941711346,-15000.0,0.00015,2]
[391873924,1760941712357,-15000.0,0.00015,2]
[391873925,1760941713243,-15000.0,0.00015,2]
[391873926,1760941714245,-15000.0,0.00015,2]
[391873941,1760941770109,-318.95734018,0.000149,2]
[391873942,1760941770131,-300.0,0.00014999,2]
[391873943,1760941770153,-14381.04265982,0.00015,2]
[391873944,1760941775289,-2882.0,0.00015,2]
[391874010,1760941837903,-358.33485164,0.00014999,2]
[391874011,1760941837915,-488.66430191,0.00014999,2]
[391874012,1760941837928,-353.00084645,0.00014999,2]
[391874013,1760941837938,-32.36339404,0.00014999,2]
[391874014,1760941837985,-267.63660596,0.00014999,2]
[391874015,1760941837995,-150.0,0.00014999,2]
[391874016,1760941838004,-6192.9114822,0.00015,2]
[391874017,1760941838016,-1960.84074772,0.00015,2]
[391874018,1760941838027,-1208.8,0.00015,2]
[391874020,1760941838169,-1221.26746359,0.00015,2]
[391874024,1760941840411,-3296.46309357,0.00015,2]
[391874025,1760941840423,-3018.29327438,0.00015,2]
[391874026,1760941840831,-4606.34962535,0.00015,2]
[391874027,1760941840842,-260.92922594,0.00015,2]
[391874031,1760941843053,-4079.01357,0.00015,2]
[391874032,1760941843141,-490.0,0.00015,2]
[391874033,1760941843232,-972.48831905,0.00015,2]
[391874045,1760941846034,-306.7032,0.00015,2]
[391874046,1760941846120,-4222.928536,0.00015,2]
[391874047,1760941846339,-304.06047244,0.00015,2]
[391874050,1760941872005,681.50487018,0.00034139,30]
[391874051,1760941988598,4217.798272,7.945e-05,2]
[391874080,1760942011837,-5000.0,0.000148,2]
[391875525,1760942795737,2688.22411604,0.00034142,53]
[391875535,1760943017770,166.24865562,4e-06,30]
[391875543,1760943032211,-354.48,0.00013699,2]
[391875544,1760943032221,-216.2345782,0.00014591,2]
[391875545,1760943032232,-1200.0,0.00014799,2]
[391875546,1760943032243,-2920.74768336,0.000148,2]
[391875547,1760943032342,-786.21695819,0.000148,2]
[391875548,1760943032355,-1612.62788037,0.000148,2]
[391875549,1760943032473,-12873.40747808,0.000148,2]
[391875550,1760943032483,-2537.26365,0.0001485,2]
[391875551,1760943032496,-666.0,0.00014874,3]
[391875552,1760943032507,-500.0,0.00014973,2]
[391875553,1760943032518,-500.0,0.00014973,2]
[391875554,1760943032528,-312.13071618,0.00014973,2]
[391875555,1760943032537,-150.0,0.00014996,2]
[391875556,1760943032546,-2857.5555633,0.00014997,2]
[391875557,1760943032556,-41707.06914566,0.00014997,2]
[391875558,1760943032588,-12157.73845064,0.00014997,2]
[391875560,1760943032598,-429.5088963,0.00014997,2]
[391875562,1760943032607,-158.06780094,0.00014999,2]
[391875563,1760943032616,-360.94177526,0.00014999,2]
[391875566,1760943032625,-2088.66264455,0.00015,2]
[391875568,1760943032637,-679.27449454,0.00015,2]
[391875570,1760943032652,-511.71246314,0.00015,2]
[391875720,1760943038197,-188.81237536,0.00014996,2]
[391875721,1760943038207,-2731.16722295,0.00015,2]
[391875737,1760943040167,-5678.92630815,0.00015,2]
[391875738,1760943040178,-832.35532283,0.00015,2]
[391875739,1760943040373,-678.99000015,0.00015,2]
[391875740,1760943040384,-2234.35,0.00015,2]
[391875741,1760943040484,-735.2070627,0.00015,2]
[391875745,1760943040669,-318.8230133,0.00015,2]
[391875754,1760943043353,-29120.9999985,0.00015,2]
[391875755,1760943043366,-12073.70326817,0.00015,2]
[391875756,1760943043375,-88671.04753158,0.00015,2]
[391875757,1760943043453,-392.29490377,0.00015,2]
[391876018,1760943046255,-651.8753548,0.00015,2]
[391876019,1760943046264,-6299.6135309,0.00015,2]
[391876021,1760943046273,-549.7111143,0.00015,2]
[391876022,1760943046374,-777.08,0.00015,2]
[391876023,1760943046584,-1005.9923867,0.00015,2]
[391876052,1760943443123,-308.66,0.0001481,2]
[391876053,1760943443146,-1000.0,0.0001481,2]
[391876054,1760943443171,-324.9758056,0.00014991,2]
[391876055,1760943443194,-366.3641944,0.00014999,2]
[391876059,1760943475096,-1200.0,0.00014999,2]
[391876060,1760943475120,-150.0,0.00014999,2]
[391876061,1760943475143,-420.0,0.00014999,2]
[391876062,1760943475167,-831.5,0.00015,2]
[391876063,1760943475191,-2114.38638,0.00015,2]
[391876064,1760943475213,-285.29577522,0.00015,2]
[391876080,1760943618442,151.0,0.00015,2]
[391876081,1760943618486,152.0,0.00015,2]
[391876082,1760943618851,151.0,0.00015,2]
[391876083,1760943618982,152.0,0.00015,2]
[391876084,1760943619439,153.44437881,0.00015,2]
[391876085,1760943619584,152.0,0.00015,2]
[391876088,1760943621193,151.0,0.00015,2]
[391876094,1760943661237,3742.02313744,0.0001485,2]
[391876126,1760943806992,2690.36941638,0.00034139,120]
[391876132,1760943841225,1161.76433931,0.00034139,120]
[391876146,1760943914136,1719.2730656,0.00014975,2]
[391876147,1760943918439,152.0,0.00015,2]
[391876148,1760943919248,152.0,0.00015,2]
[391876149,1760943919455,151.0,0.00015,2]
[391876150,1760943920055,152.0,0.00015,2]
[391876151,1760943920143,151.0,0.00015,2]
[391876152,1760943920734,152.0,0.00015,2]
[391876153,1760943921032,151.0,0.00015,2]
[391876154,1760943921306,152.0,0.00015,2]
[391876155,1760943921606,151.0,0.00015,2]
[391876156,1760943921965,294.0,0.00015,2]
[391876157,1760943922174,151.0,0.00015,2]
[391876158,1760943922752,151.0,0.00015,2]
[391876159,1760943923483,151.0,0.00015,2]
[391876160,1760943923889,151.0,0.00015,2]
[391876161,1760943924513,151.0,0.00015,2]
[391876162,1760943925090,151.0,0.00015,2]
[391876163,1760943925728,151.0,0.00015,2]
[391876164,1760943926310,151.0,0.00015,2]
[391876165,1760943926949,151.0,0.00015,2]
[391876166,1760943927523,151.0,0.00015,2]
[391876167,1760943928107,151.0,0.00015,2]
[391876168,1760943928691,151.0,0.00015,2]
[391876169,1760943929301,151.0,0.00015,2]
[391876170,1760943929904,151.0,0.00015,2]
[391876171,1760943958713,151.0,0.00015,2]
[391876176,1760944043234,-166.66,0.00015044,2]
[391876177,1760944043257,-30.95072807,0.0001527,2]
[391876207,1760944232344,-200.0,0.00015155,2]
[391876209,1760944232354,-130.37661796,0.00015232,2]
[391876210,1760944232400,-64.62338204,0.00015232,2]
[391876211,1760944232410,-1239.70864696,0.0001527,2]
[391876212,1760944232422,-522.04790989,0.0001527,2]
[391876213,1760944232433,-321.67909508,0.0001527,2]
[391876214,1760944232444,-261.0,0.00015299,2]
[391876215,1760944232453,-1200.0,0.00015299,2]
[391876216,1760944232463,-150.0,0.000153,2]
[391876217,1760944232473,-6248.5,0.000153,2]
[391876218,1760944232483,-166.66,0.0001536,2]
[391876219,1760944232493,-166.42,0.00015451,2]
[391876220,1760944232503,-250.0,0.00015451,2]
[391876221,1760944232512,-151.91,0.00015451,2]
[391876222,1760944232523,-166.66,0.00015677,2]
[391876223,1760944232533,-2114.38639,0.0001578,2]
[391876224,1760944232544,-250.0,0.00015816,7]
[391876225,1760944232554,-914.53296123,0.00015847,2]
[391876226,1760944232563,-212.0,0.00015903,2]
[391876227,1760944232574,-300.0,0.00015903,2]
[391876228,1760944232583,-9999.99,0.00015904,2]
[391876229,1760944232593,-150.99,0.00015904,2]
[391876230,1760944232602,-4823.47606038,0.00015904,2]
[391876231,1760944232619,-314.66467777,0.00015904,2]
[391876232,1760944232631,-506.14406425,0.00015904,2]
[391876233,1760944232642,-4355.7051976,0.00015904,2]
[391876234,1760944232653,-2855.2948024,0.00015904,2]
[391876235,1760944232664,-7144.6951976,0.00015904,2]
[391876236,1760944232675,-499.99,0.00015904,2]
[391876237,1760944232685,-2.86062559,0.00015904,2]
[391876238,1760944232696,-852.68973297,0.00015904,2]
[391876239,1760944232719,-326.79964144,0.00015904,2]
[391876240,1760944232728,-6369.22,0.00015905,2]
[391876241,1760944232737,-9999.99,0.00015905,2]
[391876242,1760944232747,-999.99,0.00015905,2]
[391876243,1760944232760,-984.49,0.00015906,2]
[391876244,1760944232769,-166.66,0.00015914,2]
[391876245,1760944232778,-578.20924308,0.00015955,2]
[391876246,1760944232788,-166.66,0.00015994,2]
[391876248,1760944232798,-162.34,0.00016,2]
[391876250,1760944232808,-500.0,0.00016003,2]
[391876252,1760944232817,-500.0,0.00016003,2]
[391876254,1760944232826,-500.0,0.00016003,2]
[391876256,1760944232837,-326.38271018,0.00016003,2]
[391876258,1760944232846,-8977.0600713,0.00016116,2]
[391876270,1760944238403,-244.122655,0.00015079,2]
[391876271,1760944238413,-1022.9299287,0.00016116,2]
[391876272,1760944238424,-2015.4321578,0.00016116,2]
[391876273,1760944238435,-4783.779,0.00016116,2]
[391876275,1760944238632,-10520.9688422,0.00016116,2]
[391876276,1760944238643,-11381.05244571,0.00016116,2]
[391876310,1760944240539,-1670.25,0.00016116,2]
[391876322,1760944241078,-971.16485626,0.00016116,2]
[391876338,1760944244156,-3743.91075831,0.00016116,2]
[391876429,1760944449488,220.81,7.65e-05,2]
[391876430,1760944449673,220.81,8.053e-05,2]
[391876431,1760944449880,220.81,8.455e-05,2]
[391876432,1760944450062,220.81,8.858e-05,2]
[391876433,1760944450254,220.81,9.26e-05,2]
[391876434,1760944450460,220.81,9.663e-05,2]
[391876435,1760944450655,220.81,0.00010066,2]
[391876436,1760944450851,220.81,0.00010468,2]
[391876437,1760944451044,220.81,0.00010871,2]
[391876438,1760944451250,220.81,0.00011274,2]
[391876439,1760944451455,220.81,0.00011676,2]
[391876440,1760944451646,220.81,0.00012079,2]
[391876441,1760944451983,220.81,0.00012481,2]
[391876442,1760944452234,220.81,0.00012884,2]
[391876443,1760944452435,220.81,0.00013287,2]
[391876444,1760944452625,220.81,0.00013689,2]
[391876445,1760944452984,220.81,0.00014092,2]
[391876446,1760944453180,220.81,0.00014495,2]
[391876447,1760944453384,220.81,0.00014897,2]
[391876448,1760944479736,1000.0,0.00034139,60]
[391876449,1760944492494,1000.0,0.00034139,60]
[391876450,1760944505224,1000.0,0.00034139,60]
[391876451,1760944517977,1000.0,0.00034139,60]
[391876452,1760944530711,1000.0,0.00034139,30]
[391876454,1760944543470,1000.0,0.00034139,60]
[391876455,1760944556219,1000.0,0.00034139,30]
[391876456,1760944568923,1000.0,0.00034139,30]
[391876457,1760944581663,1000.0,0.00034139,60]
[391876458,1760944594401,1000.0,0.00034139,30]
[391876459,1760944607119,1000.0,0.00034139,120]
[391876460,1760944619853,1000.0,0.00034139,60]
[391876461,1760944627088,150000.0,0.00034139,30]
[391876462,1760944632605,1000.0,0.00034139,60]
[391876463,1760944645335,1006.44,0.00034139,30]
[391876464,1760944838951,-200.0,0.000153,2]
[391876465,1760944838979,-1872.04940422,0.000153,2]
[391876466,1760944839007,-220.81,0.000153,2]
[391876467,1760944839035,-578.20924308,0.00015911,2]
[391876468,1760944839062,-300.0,0.00015934,2]
[391876469,1760944839088,-182.0,0.00015934,2]
[391876470,1760944839117,-1200.0,0.00015934,2]
[391876471,1760944839143,-474.66254457,0.00015935,2]
[391876472,1760944839171,-500.0,0.00015935,2]
[391876473,1760944839393,-500.0,0.00015935,2]
[391876474,1760944839421,-500.0,0.00015935,2]
[391876475,1760944839448,-500.0,0.00015935,2]
[391876476,1760944839474,-500.0,0.00015935,2]
[391876477,1760944839500,-500.0,0.00015935,2]
[391876478,1760944839525,-500.0,0.00015935,2]
[391876479,1760944839550,-500.0,0.00015935,2]
[391876480,1760944839576,-500.0,0.00015935,2]
[391876481,1760944839601,-263.68797424,0.00015935,2]
[391876482,1760944839626,-500.0,0.00015935,2]
[391876483,1760944839652,-499.99999999,0.00015935,2]
[391876484,1760944839677,-52895.942247,0.00015936,2]
[391876485,1760944839701,-11548.77448,0.00015936,2]
[391876486,1760944839725,-679.9434,0.0001595,2]
[391876487,1760944917158,166.66,0.00014535,2]
[391876488,1760944917351,166.66,0.00014841,2]
[391876489,1760944917541,166.66,0.00015147,2]
[391876490,1760944917890,166.66,0.00015453,2]
[391876491,1760944918091,166.66,0.00015759,2]
[391876492,1760944992251,1852.42,0.00015812,2]
[391876493,1760945018465,10648.2007069,0.00015807,2]
[391876494,1760945108221,89250.0,0.00015,2]
[391876495,1760945108255,6356.68726293,0.00015,2]
[391876496,1760945130014,50000.0,0.00034138,34]
[391876499,1760945231427,-186.62079614,0.00014999,2]
[391876500,1760945231455,-177.55063021,0.00014999,2]
[391876501,1760945231481,-207.42366532,0.00014999,2]
[391876502,1760945231512,-69.15057398,0.00014999,2]
[391876503,1760945231530,-186.62079614,0.00014999,2]
[391876504,1760945231541,-146.88787256,0.00014999,2]
[391876505,1760945231550,-30.66275765,0.00014999,2]
[391876506,1760945231567,-207.42366532,0.00014999,2]
[391876507,1760945231578,-402.32335195,0.00014999,2]
[391876512,1760945280789,5128.04470244,0.00034138,60]
[391876513,1760945307692,12343.24904618,0.00034138,60]
[391876563,1760945431531,-422.45841788,0.00015,2]
[391876564,1760945431555,-55755.00000001,0.00015,2]
[391876565,1760945431568,-2647.57839088,0.00015,2]
[391876566,1760945431580,-885.50628141,0.00015,2]
[391876567,1760945431592,-326.03172292,0.00015,2]
[391876568,1760945431664,-872.31859999,0.00015,2]
[391876569,1760945431677,-1203.444,0.00015,2]
[391876570,1760945431688,-627.62514,0.00015,2]
[391876571,1760945431701,-1000.0,0.00015,2]
[391876572,1760945431713,-874.81556192,0.00015,2]
[391876573,1760945431762,-624.24683828,0.00015,2]
[391876576,1760945431773,-627.03415411,0.00015,2]
[391876639,1760945432376,399.08,0.00013699,2]
[391876682,1760945437394,-564.1761,0.00015,2]
[391876683,1760945437419,-402.52083682,0.00015,2]
[391876684,1760945437441,-92879.59593345,0.00015,2]
[391876685,1760945437539,-1855.88,0.00015,2]
[391876686,1760945437639,-498.98998669,0.00015,2]
[391876687,1760945437651,-1251.33867206,0.00015,2]
[391876689,1760945437664,-1015.76831003,0.00015,2]
[391876690,1760945437676,-387.9830991,0.00015,2]
[391876702,1760945439534,-694.5752324,0.00015,2]
[391876703,1760945439597,-26952.02579372,0.00015,2]
[391876704,1760945439607,-87974.14571614,0.00015,2]
[391876705,1760945439806,-4851.30792477,0.00015,2]
[391876713,1760945443144,-990.41917286,0.00015,2]
[391876723,1760945445672,-1178.41819901,0.00015,2]
[391876724,1760945445684,-4236.48535379,0.00015,2]
[391876725,1760945445699,-1104.28339998,0.00015,2]
[391876726,1760945445713,-306.79859924,0.00015,2]
[391876727,1760945445727,-545.56965318,0.00015,2]
[391876728,1760945445753,-2174.670208,0.00015,2]
[391876729,1760945445935,-2814.75,0.00015,2]
[391876733,1760945816278,261.86574242,0.00034137,30]
[391876739,1760945898440,20000.0,0.00034137,35]
[391876742,1760946016245,163.07,0.000149,2]
[391876745,1760946093265,49437.85,0.000149,2]
[391876748,1760946124323,-500.0,0.00014999,2]
[391876749,1760946124348,-500.0,0.00014999,2]
[391876750,1760946124376,-500.0,0.00014999,2]
[391876751,1760946124401,-258.44373373,0.00014999,2]
[391876752,1760946124429,-384.08855626,0.00014999,2]
[391876753,1760946124456,-500.0,0.00014999,2]
[391876754,1760946124485,-500.0,0.00014999,2]
[391876755,1760946124509,-500.0,0.00014999,2]
[391876756,1760946124533,-17189.4098888,0.00015,2]
[391876757,1760946124557,-168.05782121,0.00015,2]
[391876758,1760946200766,-50627.5783558,0.00015,2]
[391876759,1760946225836,-289.0868268,0.00014999,2]
[391876760,1760946225862,-1000.0,0.00015,2]
[391876761,1760946230159,1000.0,0.000145,2]
[391876762,1760946239098,160.0,0.00015,2]
[391876763,1760946322449,3151.8595239,0.00015,2]
[391876764,1760946383187,545.65,0.00014999,2]
[391876766,1760946487065,13853.4036493,0.00015,2]
[391876796,1760946631686,-324.4150905,0.00014998,2]
[391876798,1760946631900,-875.5849095,0.00014998,2]
[391876799,1760946631912,-182.0,0.00014998,2]
[391876800,1760946631921,-166.0,0.00014998,2]
[391876801,1760946631930,-30820.0611615,0.00014998,2]
[391876802,1760946631942,-664.888,0.00014998,2]
[391876803,1760946631953,-38064.20385239,0.00014998,2]
[391876809,1760946637770,-352.84623023,0.00014997,2]
[391876810,1760946637779,-474.66254457,0.00014997,2]
[391876811,1760946637789,-500.0,0.00014997,2]
[391876812,1760946637800,-500.0,0.00014997,2]
[391876813,1760946637810,-500.0,0.00014997,2]
[391876814,1760946637819,-425.72803243,0.00014997,2]
[391876815,1760946637829,-500.0,0.00014997,2]
[391876816,1760946637838,-500.0,0.00014997,2]
[391876817,1760946637847,-500.0,0.00014997,2]
[391876818,1760946637856,-500.0,0.00014997,2]
[391876819,1760946637865,-500.0,0.00014997,2]
[391876820,1760946637874,-500.0,0.00014997,2]
[391876821,1760946637883,-500.0,0.00014997,2]
[391876822,1760946637892,-9982.48461398,0.00014998,2]
[391876823,1760946637903,-26088.16439553,0.00014998,2]
[391876824,1760946637919,-1607.39283684,0.00014998,2]
[391876829,1760946638162,-786.3146013,0.00014998,2]
[391876855,1760947044733,50000.0,0.00034135,34]
[391876856,1760947048343,50000.0,0.00034135,35]
[391876857,1760947051758,50000.0,0.00034135,36]
[391876858,1760947054918,50000.0,0.00034135,37]
[391876859,1760947057936,50000.0,0.00034135,38]
[391876860,1760947061176,50000.0,0.00034135,39]
[391876861,1760947208035,-1200.0,0.00014988,2]
[391876862,1760947208059,-195.0,0.00014989,2]
[391876863,1760947208091,-151.0,0.00014989,2]
[391876864,1760947208122,-200.0,0.00014989,2]
[391876865,1760947208145,-151.0,0.00014989,2]
[391876866,1760947208168,-151.0,0.00014989,2]
[391876867,1760947208191,-151.0,0.00014989,2]
[391876868,1760947208214,-151.0,0.00014989,2]
[391876869,1760947208236,-220.26214759,0.00014989,2]
[391876870,1760947218341,50000.0,0.00034129,34]
[391876871,1760947223322,50000.0,0.00034129,35]
[391876872,1760947228005,50000.0,0.00034129,36]
[391876873,1760947231338,50000.0,0.00034129,37]
[391876874,1760947234883,50000.0,0.00034129,38]
[391876875,1760947238262,50000.0,0.00034129,39]
[391876876,1760947243323,50000.0,0.00034129,40]
[391876878,1760947369925,50000.0,0.00034129,34]
[391876879,1760947373891,50000.0,0.00034129,35]
[391876884,1760947612788,-200.0,0.00014756,2]
[391876885,1760947612815,-33.93432468,0.00014848,2]
[391876886,1760947615973,-186.98385286,0.00014848,2]
[391876887,1760947617582,-166.66,0.00014848,2]
[391876888,1760947620467,-259.77412011,0.00014848,2]
[391876889,1760947627753,-200.0,0.00014841,2]
[391876890,1760947627776,-301.87,0.00014848,2]
[391876891,1760947657786,-151.0,0.00014841,2]
[391876892,1760947657809,-46.61072807,0.00014841,2]
[391876893,1760947703853,167.82,7.345e-05,2]
[391876894,1760947704066,167.82,9.182e-05,2]
[391876895,1760947704294,167.82,0.00011018,2]
[391876896,1760947704459,167.82,0.00012854,2]
[391876897,1760947718316,-166.19674465,0.00014691,2]
[391876904,1760947832035,-1.62325535,0.00014691,2]
[391876905,1760947832045,-1722.03259719,0.00014766,2]
[391876906,1760947832055,-104.38927193,0.00014841,2]
[391876907,1760947832064,-151.0,0.00014841,2]
[391876908,1760947832073,-275.96121545,0.00014841,2]
[391876909,1760947832082,-150.0,0.00014848,2]
[391876910,1760947832095,-781.0,0.00014848,2]
[391876911,1760947832105,-602.85867027,0.00014849,2]
[391876912,1760947832115,-500.0,0.00014849,2]
[391876913,1760947832124,-500.0,0.00014849,2]
[391876914,1760947832133,-500.0,0.00014849,2]
[391876915,1760947832142,-500.0,0.00014849,2]
[391876916,1760947832152,-500.0,0.00014849,2]
[391876917,1760947832161,-500.0,0.00014849,2]
[391876918,1760947832171,-191.84056386,0.00014849,2]
[391876919,1760947832180,-500.0,0.00014849,2]
[391876920,1760947832190,-500.0,0.00014849,2]
[391876921,1760947832199,-500.0,0.00014849,2]
[391876922,1760947832209,-500.0,0.00014849,2]
[391876923,1760947832221,-500.0,0.00014849,2]
[391876924,1760947832231,-500.0,0.00014849,2]
[391876925,1760947832241,-500.0,0.00014849,2]
[391876926,1760947832251,-500.0,0.00014849,2]
[391876928,1760947832261,-500.0,0.00014849,2]
[391876930,1760947832270,-1015.27,0.00014849,2]
[391876932,1760947832279,-16551.90982469,0.0001485,2]
[391876934,1760947832295,-22985.73017066,0.0001485,2]
[391876943,1760947837940,-187.12962127,0.0001485,2]
[391876944,1760947837952,-1958.64151499,0.0001485,2]
[391876947,1760947839986,-575.84246072,0.0001485,2]
[391876948,1760947839998,-25242.3949074,0.0001485,2]
[391876949,1760947840267,-1.6e-07,0.0001485,2]
[391876950,1760947840278,-1677.95232909,0.0001485,2]
[391876952,1760947840289,-4289.61028403,0.0001485,2]
[391876953,1760947840304,-251.55789865,0.0001485,2]
[391876954,1760947840313,-150.0,0.00014881,2]
[391876955,1760947840322,-2198.06492463,0.00014997,2]
[391876956,1760947840333,-6991.80585997,0.00014997,2]
[391876957,1760947840345,-2151.1760912,0.00014997,2]
[391876958,1760947840355,-48350.6903084,0.00014999,2]
[391876959,1760947840364,-2218.22756,0.00015,2]
[391876960,1760947840373,-160.0,0.00015,2]
[391876961,1760947840382,-246.99236116,0.00015,2]
[391876962,1760947840392,-3962.4747889,0.00015001,2]
[391876963,1760947840401,-151.91,0.00015065,2]
[391876964,1760947840410,-250.0,0.00015074,2]
[391876965,1760947840419,-1499.76606981,0.00015101,2]
[391876966,1760947840435,-1889.252,0.00015101,2]
[391876967,1760947840446,-389.07254408,0.00015101,2]
[391876968,1760947840469,-17884.33938611,0.00015101,2]
[391876969,1760947840479,-9999.99,0.00015101,2]
[391876970,1760947840489,-19126.6,0.00015101,2]
[391876971,1760947840498,-153.836078,0.00015101,2]
[391876972,1760947840508,-619.632425,0.00015101,2]
[391876973,1760947840517,-619.632425,0.00015101,2]
[391876974,1760947840527,-619.632425,0.00015101,2]
[391876975,1760947840537,-619.632425,0.00015101,2]
[391876976,1760947840546,-578.20924308,0.00015118,2]
[391876977,1760947840556,-500.0,0.00015118,2]
[391876978,1760947840565,-500.0,0.00015118,2]
[391876979,1760947840574,-500.0,0.00015118,2]
[391876980,1760947840583,-500.0,0.00015118,2]
[391876981,1760947840595,-500.0,0.00015118,2]
[391876982,1760947840604,-500.0,0.00015118,2]
[391876983,1760947840614,-500.0,0.00015118,2]
[391876984,1760947840623,-500.0,0.00015118,2]
[391876985,1760947840632,-500.0,0.00015118,2]
[391876986,1760947840642,-500.0,0.00015118,2]
[391876987,1760947840652,-500.0,0.00015118,2]
[391876988,1760947840663,-1015.27,0.00015123,2]
[391876989,1760947840673,-166.42,0.00015136,2]
[391876990,1760947840682,-625.6,0.00015159,2]
[391876991,1760947840691,-152.09315825,0.00015201,2]
[391876992,1760947840700,-151.0,0.00015201,2]
[391876993,1760947840709,-153.393008,0.00015201,2]
[391876994,1760947840719,-151.0,0.00015201,2]
[391876995,1760947840729,-151.0,0.00015201,2]
[391876996,1760947840739,-150.0,0.00015201,2]
[391876997,1760947840749,-150.0,0.00015201,2]
[391876998,1760947840758,-500.0,0.00015201,2]